fUST/lending_fUST_20241209
["ID","MTS","AMOUNT","RATE_DAILY","PERIOD"]
[344718872,1733737833079,-229.66913055,0.00022999,2]
[344718874,1733737833089,-357.27109605,0.00022999,2]
[344718876,1733737833098,-500.0,0.00022999,2]
[344718878,1733737833108,-500.0,0.00022999,2]
[344718880,1733737833117,-500.0,0.00022999,2]
[344718882,1733737833127,-500.0,0.00022999,2]
[344718884,1733737833136,-500.0,0.00022999,2]
[344718886,1733737833146,-500.0,0.00022999,2]
[344718888,1733737833155,-500.0,0.00022999,2]
[344718890,1733737833165,-500.0,0.00022999,2]
[344718892,1733737833174,-550.0,0.00022999,2]
[344718894,1733737833183,-650.0,0.00022999,2]
[344718896,1733737833194,-500.0,0.00022999,2]
[344718898,1733737833203,-500.0,0.00022999,2]
[344718900,1733737833213,-500.0,0.00022999,2]
[344718902,1733737833223,-500.0,0.00022999,2]
[344718904,1733737833233,-500.0,0.00022999,2]
[344718906,1733737833243,-500.0,0.00022999,2]
[344718908,1733737833253,-500.0,0.00022999,2]
[344718910,1733737833264,-500.0,0.00022999,2]
[344718912,1733737833273,-500.0,0.00022999,2]
[344718914,1733737833283,-500.0,0.00022999,2]
[344718916,1733737833292,-500.0,0.00022999,2]
[344718918,1733737833301,-500.0,0.00022999,2]
[344718920,1733737833311,-382.43943217,0.00022999,2]
[344718922,1733737833321,-250.0,0.00022999,2]
[344718924,1733737833331,-500.0,0.00022999,2]
[344718926,1733737833340,-500.0,0.00022999,2]
[344718928,1733737833350,-487.2991692,0.00022999,2]
[344719036,1733737838678,-12.7008308,0.00022999,2]
[344719038,1733737838687,-500.0,0.00022999,2]
[344719040,1733737838700,-500.0,0.00022999,2]
[344719042,1733737838709,-500.0,0.00022999,2]
[344719044,1733737838719,-500.0,0.00022999,2]
[344719046,1733737838729,-500.0,0.00022999,2]
[344719047,1733737838738,-500.0,0.00022999,2]
[344719049,1733737838747,-500.0,0.00022999,2]
[344719051,1733737838757,-500.0,0.00022999,2]
[344719053,1733737838767,-500.0,0.00022999,2]
[344719055,1733737838776,-552.48854687,0.00022999,2]
[344719057,1733737838785,-500.0,0.00022999,2]
[344719059,1733737838794,-501.15188269,0.00022999,2]
[344719061,1733737838803,-500.0,0.00022999,2]
[344719063,1733737838812,-391.90915862,0.00022999,2]
[344719065,1733737838822,-220.09521447,0.00022999,2]
[344719067,1733737838831,-500.0,0.00022999,2]
[344719069,1733737838840,-500.0,0.00022999,2]
[344719071,1733737838849,-229.17281652,0.00022999,2]
[344719073,1733737838860,-500.0,0.00022999,2]
[344719075,1733737838869,-500.0,0.00022999,2]
[344719077,1733737838879,-500.0,0.00022999,2]
[344719078,1733737838888,-500.0,0.00022999,2]
[344719080,1733737838898,-500.0,0.00022999,2]
[344719082,1733737838907,-500.0,0.00022999,2]
[344719084,1733737838917,-159.98268363,0.00022999,2]
[344719086,1733737838927,-582.96857945,0.00022999,2]
[344719088,1733737838936,-500.0,0.00022999,2]
[344719090,1733737838947,-371.71647633,0.00022999,2]
[344719092,1733737838957,-500.0,0.00022999,2]
[344719094,1733737838966,-500.0,0.00022999,2]
[344719096,1733737838975,-450.55910627,0.00022999,2]
[344719098,1733737838984,-500.0,0.00022999,2]
[344719100,1733737838995,-500.0,0.00022999,2]
[344719102,1733737839005,-500.0,0.00022999,2]
[344719103,1733737839014,-1294.86236206,0.00023,2]
[344719108,1733737839055,-4986.6485399,0.00023,2]
[344719111,1733737839066,-3203.31524649,0.00023,2]
[344719153,1733737840485,-330.33829117,0.00023,2]
[344719206,1733737843950,-1614.91595268,0.00023,2]
[344719207,1733737844216,-1861.65960048,0.00023,2]
[344719208,1733737844232,-2424.10245639,0.00023,2]
[344719209,1733737844241,-165.85293289,0.00023,2]
[344719210,1733737844251,-2601.81859925,0.00023,3]
[344719211,1733737844262,-16520.45445259,0.00023,3]
[344719257,1733737846568,-2338.045,0.00023,3]
[344719260,1733737846581,-9564.08945822,0.00023,3]
[344721434,1733738235793,235.203751,0.00013973,2]
[344721479,1733739032711,-802.57767381,0.00020247,2]
[344721481,1733739032723,-313.51703606,0.00020347,2]
[344721483,1733739032733,-235.203751,0.00020447,2]
[344721486,1733739032744,-161.284417,0.00020581,2]
[344721488,1733739032755,-161.284417,0.00020587,2]
[344721490,1733739032765,-161.284417,0.00020592,2]
[344721492,1733739032776,-161.284417,0.00020598,2]
[344721494,1733739032786,-161.284417,0.00020604,2]
[344721496,1733739032797,-161.284417,0.0002061,2]
[344721498,1733739032808,-161.284417,0.00020615,2]
[344721501,1733739032818,-161.284417,0.00020621,2]
[344721503,1733739032828,-161.284417,0.00020627,2]
[344721505,1733739032839,-161.284417,0.00020632,2]
[344721507,1733739032848,-161.284417,0.00020638,2]
[344721509,1733739032859,-161.284417,0.00020644,2]
[344721526,1733739033015,-161.284417,0.0002065,2]
[344721529,1733739033033,-161.284417,0.00020655,2]
[344721531,1733739033043,-161.284417,0.00020661,2]
[344721533,1733739033053,-161.284417,0.00020667,2]
[344721535,1733739033062,-146.14886796,0.00020673,2]
[344721536,1733739033086,-15.13554904,0.00020673,2]
[344721537,1733739033096,-161.284417,0.00020678,2]
[344721538,1733739033107,-144.92322142,0.00020684,2]
[344721539,1733739033122,-16.36119558,0.00020684,2]
[344721540,1733739033132,-174.100399,0.00021071,2]
[344721541,1733739033142,-903.1292698,0.00021384,2]
[344721542,1733739033153,-300.0,0.00021396,2]
[344721543,1733739033162,-903.1292698,0.00021397,2]
[344721544,1733739033171,-903.1292698,0.00021409,2]
[344721545,1733739033181,-919.30559384,0.00021485,2]
[344721546,1733739033195,-3119.29608502,0.00021485,2]
[344721547,1733739033209,-1245.66174448,0.00021485,2]
[344721548,1733739033221,-2383.09794787,0.00021485,2]
[344721649,1733739038688,-19104.307088,0.00021485,2]
[344721650,1733739038699,-1991.69,0.00021485,2]
[344721740,1733739043856,-404.66971089,0.00021485,2]
[344721741,1733739043868,-643.8555429,0.00021493,2]
[344721742,1733739043878,-250.0,0.00021509,2]
[344721743,1733739043888,-591.9463911,0.00021845,2]
[344721744,1733739043897,-3782.40255922,0.00021924,2]
[344721745,1733739043914,-1697.80806948,0.00021924,2]
[344721746,1733739043926,-204.6486876,0.00021929,2]
[344721747,1733739043937,-611.7524203,0.00021946,2]
[344721748,1733739043946,-1716.74356139,0.000228,2]
[344721749,1733739043956,-1823.10497385,0.000229,2]
[344721750,1733739043967,-500.0,0.00022973,2]
[344721751,1733739043976,-157.44,0.00022989,2]
[344721752,1733739043986,-263.45931873,0.00022999,2]
[344721753,1733739043996,-284.12167046,0.00022999,2]
[344721754,1733739044006,-370.72962621,0.00022999,2]
[344721755,1733739044016,-265.77681266,0.00022999,2]
[344721756,1733739044026,-500.0,0.00022999,2]
[344721757,1733739044035,-500.0,0.00022999,2]
[344721758,1733739044046,-500.0,0.00022999,2]
[344721759,1733739044055,-500.0,0.00022999,2]
[344721760,1733739044065,-500.0,0.00022999,2]
[344721761,1733739044075,-500.0,0.00022999,2]
[344721762,1733739044084,-500.0,0.00022999,2]
[344721763,1733739044095,-500.0,0.00022999,2]
[344721764,1733739044104,-500.0,0.00022999,2]
[344721765,1733739044116,-500.0,0.00022999,2]
[344721766,1733739044127,-500.0,0.00022999,2]
[344721768,1733739044137,-500.0,0.00022999,2]
[344721770,1733739044147,-500.0,0.00022999,2]
[344721772,1733739044156,-500.0,0.00022999,2]
[344721773,1733739044167,-500.0,0.00022999,2]
[344721774,1733739044177,-500.0,0.00022999,2]
[344721775,1733739044187,-169.28112436,0.00022999,2]
[344721777,1733739044198,-500.0,0.00022999,2]
[344721779,1733739044207,-500.0,0.00022999,2]
[344721780,1733739044217,-500.0,0.00022999,2]
[344721781,1733739044226,-500.0,0.00022999,2]
[344721782,1733739044235,-397.0840693,0.00022999,2]
[344721783,1733739044245,-500.0,0.00022999,2]
[344721784,1733739044254,-500.0,0.00022999,2]
[344721785,1733739044264,-500.0,0.00022999,2]
[344721786,1733739044273,-500.0,0.00022999,2]
[344721787,1733739044283,-500.0,0.00022999,2]
[344721788,1733739044292,-500.0,0.00022999,2]
[344721789,1733739044301,-500.0,0.00022999,2]
[344721790,1733739044310,-500.0,0.00022999,2]
[344721791,1733739044320,-500.0,0.00022999,2]
[344721792,1733739044329,-500.0,0.00022999,2]
[344721793,1733739044339,-500.0,0.00022999,2]
[344721794,1733739044348,-500.0,0.00022999,2]
[344721795,1733739044358,-500.0,0.00022999,2]
[344721796,1733739044373,-311.9689711,0.00022999,2]
[344721797,1733739044383,-500.0,0.00022999,2]
[344721798,1733739044392,-500.0,0.00022999,2]
[344721799,1733739044401,-500.0,0.00022999,2]
[344721800,1733739044411,-514.91278923,0.00022999,2]
[344721801,1733739044420,-8065.58779464,0.00023,2]
[344721802,1733739044430,-198317.49940915,0.00023,3]
[344721803,1733739044440,-14358.44820991,0.00023,2]
[344721804,1733739044449,-23796.86607785,0.00023,2]
[344721805,1733739044459,-196.396,0.00023,2]
[344721806,1733739044468,-151.0,0.00023,7]
[344721807,1733739044478,-151.0,0.00023,7]
[344721808,1733739044488,-151.0,0.00023,7]
[344721809,1733739044497,-152.082776,0.00023,7]
[344721810,1733739044507,-151.0,0.00023,7]
[344721811,1733739044516,-151.934813,0.00023,7]
[344721812,1733739044526,-151.0,0.00023,7]
[344721813,1733739044535,-151.0,0.00023,7]
[344721814,1733739044546,-151.0,0.00023,7]
[344721815,1733739044555,-151.0,0.00023,7]
[344721816,1733739044565,-151.0,0.00023,7]
[344721817,1733739044575,-151.0,0.00023,7]
[344721818,1733739044584,-151.0,0.00023,7]
[344721819,1733739044594,-151.0,0.00023,7]
[344721820,1733739044603,-151.0,0.00023,7]
[344721821,1733739044614,-151.0,0.00023,7]
[344721822,1733739044623,-151.0,0.00023,7]
[344721823,1733739044633,-151.0,0.00023,7]
[344721824,1733739044642,-258.828144,0.00023,7]
[344721825,1733739044651,-151.0,0.00023,7]
[344721826,1733739044660,-151.0,0.00023,7]
[344721827,1733739044670,-151.0,0.00023,7]
[344721828,1733739044679,-151.0,0.00023,7]
[344721829,1733739044688,-151.0,0.00023,7]
[344721830,1733739044697,-151.0,0.00023,7]
[344721831,1733739044707,-151.0,0.00023,7]
[344721832,1733739044716,-151.0,0.00023,7]
[344721833,1733739044725,-151.0,0.00023,7]
[344721834,1733739044735,-151.0,0.000234,7]
[344721835,1733739044744,-151.0,0.000234,7]
[344721836,1733739044754,-1823.10497384,0.000234,2]
[344721837,1733739044764,-192.565787,0.00023516,2]
[344721838,1733739044774,-420.0,0.00023536,2]
[344721839,1733739044783,-192.565787,0.00023736,2]
[344721840,1733739044793,-422.277,0.0002375,2]
[344721841,1733739044803,-500.0,0.0002388,2]
[344721842,1733739044813,-1823.10497384,0.000239,2]
[344721843,1733739044823,-192.565787,0.00023956,2]
[344721844,1733739044833,-500.0,0.00024,2]
[344721845,1733739044842,-192.565787,0.00024175,2]
[344721846,1733739044852,-151.0,0.00024395,7]
[344721847,1733739044863,-192.565787,0.00024395,2]
[344721848,1733739044873,-151.0,0.000244,7]
[344721849,1733739044883,-151.0,0.000244,7]
[344721850,1733739044893,-1823.10497384,0.000244,2]
[344721851,1733739044903,-151.0,0.000244,7]
[344721852,1733739044914,-151.0,0.00024548,7]
[344721853,1733739044925,-151.0,0.00024548,7]
[344721854,1733739044935,-151.0,0.00024548,7]
[344721855,1733739044945,-151.0,0.00024548,7]
[344721856,1733739044956,-209.750057,0.00024548,7]
[344721857,1733739044965,-192.565787,0.00024615,2]
[344721858,1733739044975,-200.0,0.00024658,2]
[344721859,1733739044984,-380.0,0.00024658,2]
[344721860,1733739044997,-229.078767,0.00024658,7]
[344721861,1733739045008,-1212.1970084,0.0002475,2]
[344721862,1733739045018,-151.0,0.000248,8]
[344721863,1733739045031,-192.565787,0.00024835,2]
[344721864,1733739045040,-1823.10497384,0.000249,2]
[344721865,1733739045050,-160.0,0.00024932,2]
[344721866,1733739045060,-620.68294796,0.00024973,2]
[344721867,1733739045069,-501.32643829,0.00024973,2]
[344721868,1733739045079,-151.0,0.00024973,7]
[344721869,1733739045089,-152.36952,0.00024973,7]
[344721870,1733739045098,-9581.3,0.0002498,2]
[344721871,1733739045108,-151.0,0.0002498,7]
[344721872,1733739045120,-291.320418,0.0002498,7]
[344721873,1733739045130,-151.0,0.0002498,7]
[344721874,1733739045140,-151.0,0.0002498,7]
[344721875,1733739045149,-151.0,0.0002498,7]
[344721876,1733739045158,-160.0,0.00024999,2]
[344721877,1733739045168,-80013.63533767,0.00025,10]
[344721878,1733739045225,-37201.7294388,0.00025,10]
[344721879,1733739045237,-4346.07511777,0.00025,10]
[344722033,1733739167271,239.448128,0.00013973,2]
[344722042,1733739652381,-258.04423283,0.00020247,2]
[344722043,1733739652427,-1858.63047634,0.00020347,2]
[344722044,1733739652603,-527.20245366,0.00020347,2]
[344722045,1733739700403,-239.448128,0.00020347,2]
[344722078,1733740184333,254.153777,0.00013973,2]
[344722130,1733740238080,-193.17499,0.00020377,2]
[344722131,1733740238090,-254.153777,0.00020447,2]
[344722132,1733740238099,-204.0,0.00022,2]
[344722133,1733740238109,-1393.55707972,0.000229,2]
[344722134,1733740238121,-169.735425,0.00022912,2]
[344722135,1733740238131,-3835.5138006,0.00023106,2]
[344722136,1733740238141,-250.0,0.00023112,2]
[344722137,1733740238151,-302.652877,0.00023252,2]
[344722138,1733740238160,-258.3368012,0.00023545,2]
[344722139,1733740238169,-411.009,0.0002375,2]
[344722140,1733740238179,-306.0,0.00024192,2]
[344722141,1733740238189,-606.0985042,0.00024749,2]
[344722142,1733740238198,-188.026395,0.00024817,2]
[344722143,1733740238207,-666.0,0.000249,2]
[344722144,1733740238217,-300.0,0.00024972,2]
[344722145,1733740238228,-300.0,0.00024972,2]
[344722146,1733740238237,-500.0,0.00024973,2]
[344722147,1733740238247,-161.19117512,0.00024973,2]
[344722148,1733740238258,-329.61028773,0.00024973,2]
[344722149,1733740238267,-500.0,0.00024973,2]
[344722150,1733740238279,-432.25671721,0.00024973,2]
[344722151,1733740238288,-500.7026176,0.00024973,2]
[344722152,1733740238436,-500.62551465,0.00024973,2]
[344722153,1733740238447,-500.0,0.00024973,2]
[344722154,1733740238457,-365.66168471,0.00024973,2]
[344722155,1733740238466,-500.0,0.00024973,2]
[344722156,1733740238477,-605.47255353,0.00024973,2]
[344722157,1733740238486,-500.0,0.00024973,2]
[344722158,1733740238496,-500.0,0.00024973,2]
[344722159,1733740238505,-172.40839878,0.00024973,2]
[344722160,1733740238516,-160.0,0.00024999,2]
[344722161,1733740238525,-247.2432901,0.00024999,2]
[344722162,1733740238535,-186.04376887,0.00024999,2]
[344722163,1733740238544,-37.27604126,0.00024999,2]
[344722164,1733740238556,-222.23469708,0.00024999,2]
[344722165,1733740238566,-184.42152311,0.00024999,2]
[344722166,1733740238575,-500.0,0.00024999,2]
[344722167,1733740238585,-500.0,0.00024999,2]
[344722168,1733740238594,-321.89822992,0.00024999,2]
[344722169,1733740238603,-500.0,0.00024999,2]
[344722170,1733740238612,-605.39212363,0.00024999,2]
[344722171,1733740238622,-500.0,0.00024999,2]
[344722172,1733740238632,-500.0,0.00024999,2]
[344722173,1733740238641,-493.75460449,0.00024999,2]
[344722174,1733740238651,-196.396,0.00025,8]
[344722175,1733740238660,-4032.79389732,0.00025,2]
[344722176,1733740238670,-1290.30892445,0.00025,10]
[344722278,1733740243332,-18978.62742709,0.00025,10]
[344722307,1733741121859,267.301737,0.00013973,2]
[344722316,1733741321530,1889.33617904,0.00020347,2]
[344722370,1733741432195,-267.301737,0.00020447,2]
[344722371,1733741432206,-176.401179,0.00023726,2]
[344722372,1733741432215,-393.967,0.0002375,2]
[344722373,1733741432226,-302.652877,0.00023958,2]
[344722374,1733741432236,-651.1557781,0.00024067,2]
[344722375,1733741432245,-2625.281058,0.0002465,2]
[344722376,1733741432256,-258.04423283,0.0002465,2]
[344722377,1733741432266,-955.1273575,0.00024658,4]
[344722378,1733741432276,-303.0492521,0.0002475,2]
[344722379,1733741432285,-300.0,0.00024898,2]
[344722380,1733741432295,-300.0,0.00024899,2]
[344722381,1733741432304,-285.87701327,0.000249,2]
[344722382,1733741432317,-380.12298673,0.000249,2]
[344722383,1733741432326,-628.09835943,0.000249,2]
[344722390,1733741438111,-581.65499999,0.000249,2]
[344722391,1733741438123,-3528.61022315,0.000249,2]
[344722392,1733741438134,-6753.61312891,0.000249,2]
[344722393,1733741438143,-160.0,0.00024932,2]
[344722394,1733741438154,-500.0,0.00024973,2]
[344722395,1733741438163,-529.25536283,0.00024973,2]
[344722396,1733741438172,-405.23380665,0.00024973,2]
[344722397,1733741438181,-503.04684059,0.00024973,2]
[344722398,1733741438191,-501.01391986,0.00024973,2]
[344722399,1733741438205,-500.0,0.00024973,2]
[344722400,1733741438215,-517.89693697,0.00024973,2]
[344722401,1733741438224,-500.0,0.00024973,2]
[344722402,1733741438233,-251.0,0.00024995,2]
[344722403,1733741438243,-160.0,0.00024999,2]
[344722404,1733741438252,-297.99,0.00024999,8]
[344722405,1733741438261,-500.0,0.00024999,2]
[344722406,1733741438271,-500.0,0.00024999,2]
[344722407,1733741438280,-500.0,0.00024999,2]
[344722408,1733741438290,-8460.94352289,0.00025,2]
[344722409,1733741438299,-5332.6375368,0.00025,10]
[344722410,1733741438311,-19536.17882438,0.00025,10]
[344722411,1733741438322,-19439.75231192,0.00025,10]
[344722419,1733741440115,-25187.09169026,0.00025,10]
[344722430,1733741443281,-1181.27852476,0.00025,10]
[344722431,1733741443293,-3644.98136142,0.00025,10]
[344722445,1733741446079,-985.3,0.00025,10]
[344722446,1733741446197,-230.0,0.00022,2]
[344722447,1733741446212,-620.39,0.00025,10]
[344722448,1733741446228,-9960.0,0.00025,10]
[344722449,1733741564533,2000.0,0.0003015,30]
[344722450,1733741564895,2000.0,0.0003015,30]
[344722451,1733741565281,804.2,0.0003015,30]
[344722460,1733742075161,22489.20830696,0.00019,2]
[344722461,1733742092328,46009.52408307,0.00017,2]
[344722462,1733742092358,1448.26760997,0.00017,2]
[344722463,1733742167753,2000.0,0.0003022,30]
[344722464,1733742168164,1759.8,0.0003022,30]
[344722471,1733742331678,266.379867,0.00013973,2]
[344722499,1733742632319,-262.56226071,0.00020447,2]
[344722515,1733742638294,-3.81760629,0.00020447,2]
[344722516,1733742638304,-201.0,0.00022,2]
[344722517,1733742638314,-201.0,0.00022192,2]
[344722518,1733742638323,-302.652877,0.00022956,2]
[344722519,1733742638333,-201.0,0.00023014,2]
[344722520,1733742638342,-169.735425,0.00023097,2]
[344722521,1733742638352,-195.5,0.00023154,3]
[344722522,1733742638362,-300.0,0.00023154,2]
[344722523,1733742638372,-300.0,0.00023154,2]
[344722524,1733742638383,-150.0,0.00023155,2]
[344722525,1733742638393,-532.0,0.00023155,2]
[344722526,1733742638403,-2373.0,0.00023155,2]
[344722527,1733742638413,-2169.0,0.00023155,2]
[344722528,1733742638424,-3255.9560673,0.00023275,2]
[344722529,1733742638433,-320.0,0.00023288,2]
[344722530,1733742638443,-3000.0,0.000235,2]
[344722531,1733742638453,-3000.0,0.0002351,2]
[344722532,1733742638462,-154.95885774,0.0002352,2]
[344722533,1733742638475,-4314.84957104,0.0002352,2]
[344722534,1733742638487,-159.12400122,0.0002352,2]
[344722535,1733742638497,-383.858,0.0002375,2]
[344722536,1733742638507,-195.5,0.00023949,3]
[344722537,1733742638516,-150.401449,0.00024,2]
[344722538,1733742638526,-320.0,0.00024149,2]
[344722539,1733742638536,-208.0,0.00024164,2]
[344722540,1733742638545,-765.0,0.00024384,2]
[344722541,1733742638556,-153.0,0.00024466,2]
[344722542,1733742638565,-153.0,0.00024466,2]
[344722543,1733742638575,-153.0,0.00024466,2]
[344722544,1733742638584,-153.0,0.00024466,2]
[344722545,1733742638598,-153.0,0.00024466,2]
[344722546,1733742638607,-310.1768559,0.00024466,2]
[344722547,1733742638615,-200.0,0.00024658,15]
[344722548,1733742638624,-148.12479798,0.00024726,2]
[344722549,1733742638636,-36.87533402,0.00024726,2]
[344722550,1733742638644,-195.5,0.00024744,4]
[344722551,1733742638654,-247.2838105,0.0002475,2]
[344722552,1733742638663,-2157.321467,0.0002476,2]
[344722553,1733742638672,-1673.27234942,0.00024873,2]
[344722554,1733742638681,-151.0,0.000249,6]
[344722555,1733742638690,-151.0,0.000249,10]
[344722556,1733742638699,-151.0,0.000249,7]
[344722557,1733742638708,-301.112233,0.000249,6]
[344722558,1733742638719,-666.0,0.000249,2]
[344722559,1733742638729,-1718.74905286,0.000249,2]
[344722560,1733742638739,-160.0,0.00024932,2]
[344722561,1733742638749,-348.90045195,0.00024973,2]
[344722562,1733742638759,-641.45578968,0.00024973,2]
[344722563,1733742638769,-260.48383135,0.00024973,2]
[344722564,1733742638779,-500.0,0.00024973,2]
[344722565,1733742638790,-500.0,0.00024973,2]
[344722566,1733742638799,-500.0,0.00024973,2]
[344722567,1733742638809,-500.0,0.00024973,2]
[344722568,1733742638819,-178.168,0.00024973,8]
[344722569,1733742638831,-500.0,0.0002499,2]
[344722570,1733742638840,-500.0,0.0002499,2]
[344722571,1733742638851,-500.0,0.0002499,2]
[344722572,1733742638861,-500.0,0.0002499,2]
[344722573,1733742638871,-500.0,0.0002499,2]
[344722574,1733742638881,-500.0,0.0002499,2]
[344722575,1733742638891,-500.0,0.0002499,2]
[344722576,1733742638902,-500.0,0.0002499,2]
[344722577,1733742638912,-500.0,0.0002499,2]
[344722578,1733742638922,-500.0,0.0002499,2]
[344722579,1733742638932,-500.0,0.0002499,2]
[344722580,1733742638942,-500.0,0.0002499,2]
[344722581,1733742638952,-500.0,0.0002499,2]
[344722582,1733742638963,-500.0,0.0002499,2]
[344722583,1733742638973,-500.0,0.0002499,2]
[344722584,1733742638983,-500.0,0.0002499,2]
[344722585,1733742638992,-500.0,0.0002499,2]
[344722586,1733742639002,-500.0,0.0002499,2]
[344722587,1733742639012,-500.0,0.0002499,2]
[344722588,1733742639022,-500.0,0.0002499,2]
[344722589,1733742639032,-500.0,0.0002499,2]
[344722590,1733742639042,-500.0,0.0002499,2]
[344722591,1733742639052,-500.0,0.0002499,2]
[344722592,1733742639062,-500.0,0.0002499,2]
[344722593,1733742639071,-500.0,0.0002499,2]
[344722594,1733742639082,-500.0,0.0002499,2]
[344722595,1733742639094,-331.5077871,0.0002499,2]
[344722596,1733742639105,-500.45125952,0.0002499,2]
[344722597,1733742639118,-27.08705316,0.0002499,2]
[344722598,1733742639128,-306.92294692,0.0002499,2]
[344722620,1733742640227,-193.07705308,0.0002499,2]
[344722622,1733742640236,-100.39494691,0.0002499,2]
[344722664,1733742643479,-101.10588744,0.0002499,2]
[344722665,1733742643489,-500.0,0.0002499,2]
[344722666,1733742643499,-500.0,0.0002499,2]
[344722667,1733742643509,-500.0,0.0002499,2]
[344722668,1733742643519,-500.0,0.0002499,2]
[344722669,1733742643529,-500.0,0.0002499,2]
[344722670,1733742643538,-500.0,0.0002499,2]
[344722671,1733742643548,-500.0,0.0002499,2]
[344722672,1733742643558,-500.0,0.0002499,2]
[344722673,1733742643567,-611.47921536,0.0002499,2]
[344722674,1733742643578,-500.0,0.0002499,2]
[344722675,1733742643588,-500.0,0.0002499,2]
[344722676,1733742643598,-500.0,0.0002499,2]
[344722677,1733742643608,-500.0,0.0002499,2]
[344722678,1733742643618,-500.0,0.0002499,2]
[344722679,1733742643628,-500.0,0.0002499,2]
[344722680,1733742643638,-500.0,0.0002499,2]
[344722681,1733742643648,-500.0,0.0002499,2]
[344722682,1733742643658,-500.0,0.0002499,2]
[344722683,1733742643667,-500.0,0.0002499,2]
[344722684,1733742643677,-457.08428774,0.0002499,2]
[344722685,1733742643687,-500.0,0.0002499,2]
[344722686,1733742643697,-500.0,0.0002499,2]
[344722687,1733742643707,-500.0,0.0002499,2]
[344722688,1733742643717,-500.0,0.0002499,2]
[344722689,1733742643726,-500.0,0.0002499,2]
[344722690,1733742643736,-500.0,0.0002499,2]
[344722691,1733742643746,-500.0,0.0002499,2]
[344722692,1733742643756,-500.0,0.0002499,2]
[344722693,1733742643766,-500.0,0.0002499,2]
[344722694,1733742643776,-500.0,0.0002499,2]
[344722695,1733742643786,-500.0,0.0002499,2]
[344722696,1733742643796,-500.0,0.0002499,2]
[344722697,1733742643805,-500.0,0.0002499,2]
[344722698,1733742643815,-500.0,0.0002499,2]
[344722699,1733742643824,-500.0,0.0002499,2]
[344722700,1733742643836,-500.0,0.0002499,2]
[344722701,1733742643846,-500.0,0.0002499,2]
[344722702,1733742643856,-500.0,0.0002499,2]
[344722703,1733742643865,-500.0,0.0002499,2]
[344722704,1733742643875,-500.0,0.0002499,2]
[344722705,1733742643885,-500.0,0.0002499,2]
[344722706,1733742643894,-500.0,0.0002499,2]
[344722707,1733742643904,-500.0,0.0002499,2]
[344722708,1733742643914,-500.0,0.0002499,2]
[344722709,1733742643924,-500.0,0.0002499,2]
[344722710,1733742643934,-500.0,0.0002499,2]
[344722711,1733742643943,-500.0,0.0002499,2]
[344722712,1733742643953,-500.0,0.0002499,2]
[344722713,1733742643962,-500.0,0.0002499,2]
[344722714,1733742643971,-500.0,0.0002499,2]
[344722715,1733742643981,-500.0,0.0002499,2]
[344722716,1733742643990,-500.0,0.0002499,2]
[344722717,1733742644000,-500.0,0.0002499,2]
[344722718,1733742644009,-500.0,0.0002499,2]
[344722719,1733742644018,-500.0,0.0002499,2]
[344722720,1733742644027,-500.0,0.0002499,2]
[344722721,1733742644037,-500.0,0.0002499,2]